[Event "Croatian junior league 2021"]
[Site "Rabac"]
[Date "2021.04.09"]
[Round "8.3"]
[White "Mrvac, Petar"]
[Black "Mijic, Karlo"]
[Result "1/2-1/2"]
[ECO "C45"]
[WhiteElo "1908"]
[BlackElo "1599"]
[Annotator "NA"]
[PlyCount "93"]
[EventDate "2021.04.06"]
[EventType "swiss"]
[EventCountry "CRO"]
[SourceTitle "playchess.com"]
[Source "ChessBase"]
[SourceQuality "1"]
[TimeControl "5400+30"]

1. e4 {[%emt 0:00:00]} e5 {[%emt 0:01:06]} 2. Nf3 {[%emt 0:00:00]} Nc6 {[%emt 0:00:05]} 3. d4 {[%emt 0:00:00]} exd4 {[%emt 0:00:01]} 4. Nxd4 {[%emt 0:00:00]} Nf6 {[%emt 0:00:03]} 5. Nxc6 {[%emt 0:00:05]} bxc6 {[%emt 0:00:04]} 6. Bd3 {[%emt 0:00:14]} d5 {[%emt 0:00:02]} 7. exd5 {[%emt 0:01:02]} cxd5 {[%emt 0:00:07]} 8. O-O {[%emt 0:00:42]} Be7 {[%emt 0:00:59]} 9. Bg5 {[%emt 0:02:07]} O-O {[%emt 0:00:56]} 10. Nc3 {[%emt 0:01:47]} h6 {[%emt 0:00:14]} 11. Bh4 {[%emt 0:00:20]} c6 {[%emt 0:01:04]} 12. h3 {[%emt 0:01:00]} Qb6 {[%emt 0:02:15]} 13. Rb1 {[%emt 0:02:45]} Be6 {[%emt 0:03:04]} 14. Ne2 {[%emt 0:02:24]} Qb4 {[%emt 0:07:37]} 15. Bg3 {[%emt 0:02:44]} Ne4 {[%emt 0:00:29]} 16. a3 {[%emt 0:03:33]} Qa4 {[%emt 0:00:55]} 17. Bxe4 {[%emt 0:02:01]} Qxe4 {[%emt 0:03:06]} 18. Re1 {[%emt 0:03:58]} Bc5 {[%emt 0:05:33]} 19. Nf4 {[%emt 0:10:07]} Qf5 {[%emt 0:00:20]} 20. Nd3 {[%emt 0:04:21]} Bb6 {[%emt 0:03:25]} 21. b4 {[%emt 0:02:37]} Qg5 {[%emt 0:02:23]} 22. Bf4 {[%emt 0:07:21]} Qg6 {[%emt 0:04:45]} 23. Qf3 {[%emt 0:04:48]} Bf5 {[%emt 0:05:47]} 24. Ne5 {[%emt 0:11:23]} Qf6 {[%emt 0:03:28]} 25. Rbc1 {[%emt 0:00:31]} Be4 {[%emt 0:00:29]} 26. Qg3 {[%emt 0:01:56]} Rad8 {[%emt 0:05:13]} 27. Ng4 {[%emt 0:04:11]} Qg6 {[%emt 0:01:11]} 28. c3 {[%emt 0:01:54]} Kh7 {[%emt 0:03:49]} 29. Kh2 {[%emt 0:04:09]} f5 {[%emt 0:01:40]} 30. Ne5 {[%emt 0:09:53]} Qxg3+ {[%emt 0:00:06]} 31. fxg3 {[%emt 0:00:15]} Rf6 {[%emt 0:03:20]} 32. Rcd1 {[%emt 0:02:52]} Re6 {[%emt 0:04:50]} 33. Nf3 {[%emt 0:00:56]} c5 {[%emt 0:01:08]} 34. h4 {[%emt 0:03:04]} Rc8 {[%emt 0:00:51]} 35. Be3 {[%emt 0:01:14]} cxb4 {[%emt 0:00:39]} 36. Bxb6 {[%emt 0:00:33]} Rxb6 {[%emt 0:00:13]} 37. cxb4 {[%emt 0:00:27]} Rc3 {[%emt 0:00:07]} 38. Nd2 {[%emt 0:01:56]} Rxa3 {[%emt 0:00:37]} 39. Nxe4 {[%emt 0:00:07]} fxe4 {[%emt 0:01:48]} 40. Rxd5 {[%emt 0:00:10]} Rxb4 {[%emt 0:00:03]} 41. Rd7 {[%emt 0:00:40]} a5 {[%emt 0:10:44]} 42. Re7 {[%emt 0:00:34]} e3 {[%emt 0:00:05]} 43. R1xe3 {[%emt 0:02:32]} Rxe3 {[%emt 0:00:08]} 44. Rxe3 {[%emt 0:00:05]} a4 {[%emt 0:00:01]} 45. Re8 {[%emt 0:00:39]} a3 {[%emt 0:01:36]} 46. Ra8 {[%emt 0:00:12]} Rb3 {[%emt 0:00:00]} 47. h5 {[%emt 0:00:13]} 1/2-1/2

[Event "Croatian junior league 2021"]
[Site "Rabac"]
[Date "2021.04.09"]
[Round "8.4"]
[White "Bedic, Noemi"]
[Black "Moric, Ivan"]
[Result "1/2-1/2"]
[ECO "B23"]
[WhiteElo "1587"]
[BlackElo "1907"]
[Annotator "NA"]
[PlyCount "97"]
[EventDate "2021.04.06"]
[EventType "swiss"]
[EventCountry "CRO"]
[SourceTitle "playchess.com"]
[Source "ChessBase"]
[SourceQuality "1"]
[TimeControl "5400+30"]

1. e4 {[%emt 0:02:08]} c5 {[%emt 0:00:00]} 2. Nc3 {[%emt 0:00:24]} d6 {[%emt 0:00:00]} 3. f4 {[%emt 0:00:28]} Nf6 {[%emt 0:00:12]} 4. Nf3 {[%emt 0:00:29]} a6 {[%emt 0:00:21]} 5. a4 {[%emt 0:00:08]} e6 {[%emt 0:01:29]} 6. d3 {[%emt 0:02:46]} Be7 {[%emt 0:00:24]} 7. g3 {[%emt 0:00:54]} b6 {[%emt 0:00:46]} 8. Bg2 {[%emt 0:00:13]} Bb7 {[%emt 0:00:10]} 9. O-O {[%emt 0:00:08]} O-O {[%emt 0:00:06]} 10. h3 {[%emt 0:02:18]} Nc6 {[%emt 0:01:55]} 11. g4 {[%emt 0:05:56]} Na5 {[%emt 0:07:10]} 12. b3 {[%emt 0:07:22]} d5 {[%emt 0:11:42]} 13. e5 {[%emt 0:00:09]} Nd7 {[%emt 0:00:30]} 14. d4 {[%emt 0:05:14]} cxd4 {[%emt 0:01:52]} 15. Nxd4 {[%emt 0:01:11]} Rc8 {[%emt 0:02:04]} 16. Nce2 {[%emt 0:02:28]} Qc7 {[%emt 0:06:54]} 17. c3 {[%emt 0:08:11]} Nc6 {[%emt 0:06:28]} 18. Ra2 {[%emt 0:07:52]} Nc5 {[%emt 0:01:54]} 19. Rc2 {[%emt 0:07:00]} Ne4 {[%emt 0:05:06]} 20. Nxc6 {[%emt 0:07:15]} Qxc6 {[%emt 0:00:25]} 21. Nd4 {[%emt 0:04:08]} Bc5 {[%emt 0:19:43]} 22. Be3 {[%emt 0:00:54]} Qc7 {[%emt 0:01:24]} 23. Qe1 {[%emt 0:08:45]} Bxd4 {[%emt 0:07:19]} 24. Bxd4 {[%emt 0:00:08]} a5 {[%emt 0:01:55]} 25. Bxe4 {[%emt 0:02:10]} dxe4 {[%emt 0:00:10]} 26. Qe3 {[%emt 0:00:02]} Rfd8 {[%emt 0:05:43]} 27. Bxb6 {[%emt 0:07:32]} Rd3 {[%emt 0:00:11]} 28. Bxc7 {[%emt 0:00:21]} Rxe3 {[%emt 0:00:15]} 29. Bxa5 {[%emt 0:00:05]} Rxh3 {[%emt 0:02:15]} 30. Kg2 {[%emt 0:05:55]} Rd3 {[%emt 0:00:29]} 31. Kf2 {[%emt 0:04:41]} Bd5 {[%emt 0:00:48]} 32. Rb2 {[%emt 0:01:36]} Rb8 {[%emt 0:00:21]} 33. Rfb1 {[%emt 0:02:15]} e3+ {[%emt 0:02:06]} 34. Ke2 {[%emt 0:00:29]} Rd2+ {[%emt 0:00:40]} 35. Rxd2 {[%emt 0:00:14]} exd2 {[%emt 0:00:04]} 36. Kxd2 {[%emt 0:00:06]} Rxb3 {[%emt 0:00:13]} 37. Rxb3 {[%emt 0:02:07]} Bxb3 {[%emt 0:00:04]} 38. Kd3 {[%emt 0:00:17]} Bxa4 {[%emt 0:03:38]} 39. Kc4 {[%emt 0:01:39]} Kf8 {[%emt 0:00:36]} 40. Kc5 {[%emt 0:00:05]} Ke7 {[%emt 0:00:37]} 41. c4 {[%emt 0:01:35]} Kd7 {[%emt 0:00:45]} 42. Kb6 {[%emt 0:00:18]} f6 {[%emt 0:03:58]} 43. Bc3 {[%emt 0:01:32]} f5 {[%emt 0:02:58]} 44. gxf5 {[%emt 0:00:41]} exf5 {[%emt 0:00:08]} 45. e6+ {[%emt 0:01:04]} Kxe6 {[%emt 0:00:06]} 46. Bxg7 {[%emt 0:00:04]} h5 {[%emt 0:00:45]} 47. Bd4 {[%emt 0:00:22]} h4 {[%emt 0:01:11]} 48. Bg1 {[%emt 0:00:37]} h3 {[%emt 0:00:06]} 49. Kc5 {[%emt 0:00:24]} 1/2-1/2

[Event "Croatian junior league 2021"]
[Site "Rabac"]
[Date "2021.04.09"]
[Round "8.5"]
[White "Damjanovic, Stjepan"]
[Black "Vucenovic, Damian"]
[Result "0-1"]
[ECO "C54"]
[WhiteElo "1890"]
[BlackElo "2008"]
[Annotator "NA"]
[PlyCount "78"]
[EventDate "2021.04.06"]
[EventType "swiss"]
[EventCountry "CRO"]
[SourceTitle "playchess.com"]
[Source "ChessBase"]
[SourceQuality "1"]
[TimeControl "5400+30"]

1. e4 {[%emt 0:00:00]} e5 {[%emt 0:00:00]} 2. Nf3 {[%emt 0:00:00]} Nc6 {[%emt 0:00:10]} 3. Bc4 {[%emt 0:00:14]} Bc5 {[%emt 0:00:31]} 4. c3 {[%emt 0:00:17]} Nf6 {[%emt 0:00:49]} 5. d3 {[%emt 0:00:50]} d6 {[%emt 0:00:52]} 6. O-O {[%emt 0:00:16]} Bb6 {[%emt 0:00:38]} 7. Nbd2 {[%emt 0:00:44]} O-O {[%emt 0:01:49]} 8. h3 {[%emt 0:00:23]} Ne7 {[%emt 0:01:24]} 9. Re1 {[%emt 0:01:57]} Ng6 {[%emt 0:01:55]} 10. Nf1 {[%emt 0:00:39]} c6 {[%emt 0:02:23]} 11. Bb3 {[%emt 0:01:43]} Nh5 {[%emt 0:05:07]} 12. d4 {[%emt 0:09:24]} Qc7 {[%emt 0:04:46]} 13. Be3 {[%emt 0:10:23]} Nhf4 {[%emt 0:03:54]} 14. Ng3 {[%emt 0:01:57]} Kh8 {[%emt 0:06:57]} 15. Qc2 {[%emt 0:08:32]} Be6 {[%emt 0:07:21]} 16. Nf5 {[%emt 0:09:49]} Rae8 {[%emt 0:07:53]} 17. Rad1 {[%emt 0:03:06]} Ne7 {[%emt 0:07:27]} 18. Bxf4 {[%emt 0:27:14]} exf4 {[%emt 0:05:07]} 19. Ng5 {[%emt 0:00:57]} Nxf5 {[%emt 0:03:52]} 20. Bxe6 {[%emt 0:03:54]} Nxd4 {[%emt 0:14:35]} 21. Rxd4 {[%emt 0:07:04]} Bxd4 {[%emt 0:03:17]} 22. Nxf7+ {[%emt 0:00:38]} Rxf7 {[%emt 0:00:24]} 23. Bxf7 {[%emt 0:00:09]} Bxf2+ {[%emt 0:00:23]} 24. Qxf2 {[%emt 0:00:06]} Qxf7 {[%emt 0:00:06]} 25. Qxa7 {[%emt 0:00:19]} h6 {[%emt 0:02:39]} 26. b3 {[%emt 0:00:53]} Qg6 {[%emt 0:02:23]} 27. Qd4 {[%emt 0:03:55]} f3 {[%emt 0:03:28]} 28. Qf2 {[%emt 0:01:57]} fxg2 {[%emt 0:00:45]} 29. Qxg2 {[%emt 0:00:28]} Qf6 {[%emt 0:00:23]} 30. Re3 {[%emt 0:05:16]} Re5 {[%emt 0:01:14]} 31. Qf3 {[%emt 0:00:42]} Rg5+ {[%emt 0:01:17]} 32. Kf2 {[%emt 0:00:34]} Qe5 {[%emt 0:00:42]} 33. Ke2 {[%emt 0:01:35]} Qh2+ {[%emt 0:00:37]} 34. Kd3 {[%emt 0:00:01]} Qxa2 {[%emt 0:03:50]} 35. h4 {[%emt 0:01:00]} Rg6 {[%emt 0:00:29]} 36. Qf8+ {[%emt 0:00:16]} Kh7 {[%emt 0:00:11]} 37. Qf5 {[%emt 0:00:04]} Qxb3 {[%emt 0:07:09]} 38. h5 {[%emt 0:01:05]} Qd1+ {[%emt 0:00:08]} 39. Kc4 {[%emt 0:00:05]} b5+ {[%emt 0:00:05]} 0-1

[Event "Croatian junior league 2021"]
[Site "Rabac"]
[Date "2021.04.09"]
[Round "8.6"]
[White "Sagovac, Kristijan"]
[Black "Mandaric, Fran"]
[Result "1/2-1/2"]
[ECO "B76"]
[WhiteElo "1920"]
[BlackElo "1684"]
[Annotator "NA"]
[PlyCount "91"]
[EventDate "2021.04.06"]
[EventType "swiss"]
[EventCountry "CRO"]
[SourceTitle "playchess.com"]
[Source "ChessBase"]
[SourceQuality "1"]
[TimeControl "5400+30"]

1. e4 {[%emt 0:00:00]} c5 {[%emt 0:00:00]} 2. Nf3 {[%emt 0:00:00]} Nc6 {[%emt 0:00:00]} 3. d4 {[%emt 0:00:00]} cxd4 {[%emt 0:00:04]} 4. Nxd4 {[%emt 0:00:00]} g6 {[%emt 0:00:04]} 5. Be3 {[%emt 0:00:04]} Bg7 {[%emt 0:00:09]} 6. Nc3 {[%emt 0:00:59]} d6 {[%emt 0:00:23]} 7. Qd2 {[%emt 0:00:34]} Nf6 {[%emt 0:00:07]} 8. f3 {[%emt 0:00:11]} O-O {[%emt 0:00:19]} 9. O-O-O {[%emt 0:01:07]} a6 {[%emt 0:18:55]} 10. g4 {[%emt 0:02:10]} Nxd4 {[%emt 0:04:04]} 11. Bxd4 {[%emt 0:00:15]} b5 {[%emt 0:00:52]} 12. h4 {[%emt 0:03:33]} Qa5 {[%emt 0:04:24]} 13. Kb1 {[%emt 0:03:04]} Be6 {[%emt 0:02:50]} 14. Nd5 {[%emt 0:04:54]} Qxd2 {[%emt 0:00:59]} 15. Nxe7+ {[%emt 0:00:41]} Kh8 {[%emt 0:00:10]} 16. Rxd2 {[%emt 0:00:01]} Rfe8 {[%emt 0:03:03]} 17. Nc6 {[%emt 0:03:32]} d5 {[%emt 0:14:40]} 18. h5 {[%emt 0:04:46]} Nd7 {[%emt 0:11:32]} 19. hxg6 {[%emt 0:16:04]} fxg6 {[%emt 0:00:16]} 20. Rdh2 {[%emt 0:04:18]} Bg8 {[%emt 0:04:25]} 21. Bd3 {[%emt 0:02:10]} Bxd4 {[%emt 0:01:47]} 22. Nxd4 {[%emt 0:01:17]} Nc5 {[%emt 0:01:52]} 23. exd5 {[%emt 0:01:51]} Nxd3 {[%emt 0:00:10]} 24. cxd3 {[%emt 0:00:38]} Rad8 {[%emt 0:01:01]} 25. Ne6 {[%emt 0:00:46]} Rd7 {[%emt 0:01:23]} 26. f4 {[%emt 0:11:12]} Bxe6 {[%emt 0:03:57]} 27. dxe6 {[%emt 0:00:38]} Rxe6 {[%emt 0:00:03]} 28. Kc2 {[%emt 0:02:26]} Re3 {[%emt 0:01:34]} 29. Rh6 {[%emt 0:09:33]} Kg8 {[%emt 0:06:53]} 30. f5 {[%emt 0:00:48]} gxf5 {[%emt 0:00:51]} 31. gxf5 {[%emt 0:00:44]} Rexd3 {[%emt 0:00:56]} 32. Rxh7 {[%emt 0:03:34]} Rd2+ {[%emt 0:01:58]} 33. Kc1 {[%emt 0:00:34]} Rxh7 {[%emt 0:01:11]} 34. Rxh7 {[%emt 0:05:54]} Rxb2 {[%emt 0:00:11]} 35. Kxb2 {[%emt 0:01:02]} Kxh7 {[%emt 0:00:08]} 36. Kc3 {[%emt 0:00:52]} Kg7 {[%emt 0:02:35]} 37. Kb4 {[%emt 0:00:07]} Kf6 {[%emt 0:00:04]} 38. Ka5 {[%emt 0:00:07]} Kxf5 {[%emt 0:00:05]} 39. a3 {[%emt 0:01:20]} Ke6 {[%emt 0:00:20]} 40. Kxa6 {[%emt 0:00:04]} Kd7 {[%emt 0:00:18]} 41. Kb7 {[%emt 0:00:11]} Kd8 {[%emt 0:00:19]} 42. Kb8 {[%emt 0:00:25]} Kd7 {[%emt 0:00:10]} 43. Kb7 {[%emt 0:00:02]} Kd8 {[%emt 0:00:04]} 44. Kb6 {[%emt 0:00:28]} Kc8 {[%emt 0:00:17]} 45. Kxb5 {[%emt 0:00:04]} Kb7 {[%emt 0:00:11]} 46. a4 {[%emt 0:00:03]} 1/2-1/2

[Event "Croatian junior league 2021"]
[Site "Rabac"]
[Date "2021.04.09"]
[Round "8.7"]
[White "Juric, Ester"]
[Black "Dumancic, Simun"]
[Result "0-1"]
[ECO "D80"]
[WhiteElo "1587"]
[BlackElo "1883"]
[Annotator "NA"]
[PlyCount "66"]
[EventDate "2021.04.06"]
[EventType "swiss"]
[EventCountry "CRO"]
[SourceTitle "playchess.com"]
[Source "ChessBase"]
[SourceQuality "1"]
[TimeControl "5400+30"]

1. d4 {[%emt 0:00:00]} Nf6 {[%emt 0:00:00]} 2. c4 {[%emt 0:00:00]} g6 {[%emt 0:00:00]} 3. Nc3 {[%emt 0:00:00]} d5 4. e3 {[%emt 0:00:07]} Bg7 {[%emt 0:00:35]} 5. cxd5 {[%emt 0:00:18]} Nxd5 {[%emt 0:00:21]} 6. Nxd5 {[%emt 0:00:18]} Qxd5 {[%emt 0:00:18]} 7. Ne2 O-O {[%emt 0:04:53]} 8. Nc3 {[%emt 0:01:01]} Qd8 {[%emt 0:00:33]} 9. Be2 {[%emt 0:01:02]} c5 {[%emt 0:03:49]} 10. d5 {[%emt 0:07:11]} e6 {[%emt 0:04:37]} 11. dxe6 {[%emt 0:03:07]} Qxd1+ {[%emt 0:00:49]} 12. Bxd1 {[%emt 0:00:23]} Bxe6 {[%emt 0:00:17]} 13. O-O {[%emt 0:00:42]} Nc6 {[%emt 0:03:08]} 14. Ne4 {[%emt 0:02:12]} b6 {[%emt 0:02:49]} 15. Ba4 {[%emt 0:03:49]} Nb4 {[%emt 0:04:45]} 16. a3 {[%emt 0:06:24]} Nd3 {[%emt 0:00:51]} 17. Nc3 {[%emt 0:00:28]} Rfd8 {[%emt 0:12:42]} 18. Bc2 {[%emt 0:09:21]} c4 {[%emt 0:06:13]} 19. Bxd3 {[%emt 0:07:14]} Rxd3 {[%emt 0:03:00]} 20. Ne4 {[%emt 0:02:34]} Rad8 {[%emt 0:03:12]} 21. h3 {[%emt 0:03:05]} Bc8 {[%emt 0:08:08]} 22. Rb1 {[%emt 0:04:51]} Bb7 {[%emt 0:03:22]} 23. Ng3 {[%emt 0:03:57]} Rb3 {[%emt 0:01:58]} 24. Ne2 {[%emt 0:04:25]} Be4 {[%emt 0:03:41]} 25. Ra1 {[%emt 0:00:12]} Bxb2 {[%emt 0:05:01]} 26. Bxb2 {[%emt 0:00:03]} Rxb2 {[%emt 0:00:02]} 27. Nc3 {[%emt 0:00:07]} Bc6 {[%emt 0:02:26]} 28. Rfc1 {[%emt 0:01:33]} Rdd2 {[%emt 0:03:03]} 29. Nd1 {[%emt 0:01:13]} Rbc2 {[%emt 0:00:11]} 30. Rab1 {[%emt 0:01:23]} Ba4 {[%emt 0:02:51]} 31. Nc3 {[%emt 0:00:07]} Bb3 {[%emt 0:00:32]} 32. Ne4 {[%emt 0:00:27]} Rxc1+ {[%emt 0:00:38]} 33. Rxc1 {[%emt 0:00:03]} Ra2 {[%emt 0:00:13]} 0-1

[Event "Croatian junior league 2021"]
[Site "Rabac"]
[Date "2021.04.09"]
[Round "8.8"]
[White "Martic, Filip"]
[Black "Markovic, Marko"]
[Result "1-0"]
[ECO "D37"]
[WhiteElo "1756"]
[BlackElo "2232"]
[Annotator "NA"]
[PlyCount "97"]
[EventDate "2021.04.06"]
[EventType "swiss"]
[EventCountry "CRO"]
[SourceTitle "playchess.com"]
[Source "ChessBase"]
[SourceQuality "1"]
[TimeControl "5400+30"]

1. d4 {[%emt 0:00:00]} d5 {[%emt 0:00:00]} 2. Nf3 {[%emt 0:00:00]} e6 3. c4 {[%emt 0:00:07]} Nf6 {[%emt 0:00:00]} 4. Nc3 {[%emt 0:00:14]} Be7 {[%emt 0:00:00]} 5. Bf4 {[%emt 0:01:03]} O-O {[%emt 0:00:38]} 6. e3 {[%emt 0:01:12]} a6 {[%emt 0:02:49]} 7. cxd5 {[%emt 0:01:19]} exd5 {[%emt 0:00:21]} 8. Bd3 {[%emt 0:00:59]} Bg4 {[%emt 0:06:21]} 9. O-O {[%emt 0:01:35]} Bd6 {[%emt 0:01:35]} 10. Bg5 {[%emt 0:01:04]} c6 {[%emt 0:00:42]} 11. h3 {[%emt 0:09:37]} Bh5 {[%emt 0:00:33]} 12. Rb1 {[%emt 0:01:03]} Nbd7 {[%emt 0:03:19]} 13. b4 {[%emt 0:02:52]} h6 {[%emt 0:02:24]} 14. Bxf6 {[%emt 0:00:38]} Qxf6 {[%emt 0:00:34]} 15. Be2 {[%emt 0:02:17]} Bc7 {[%emt 0:05:48]} 16. a4 {[%emt 0:03:36]} Qd6 {[%emt 0:02:09]} 17. g3 {[%emt 0:00:20]} Rfe8 {[%emt 0:00:17]} 18. Qd2 {[%emt 0:03:44]} b5 {[%emt 0:12:29]} 19. Rfc1 {[%emt 0:02:32]} Qg6 {[%emt 0:11:05]} 20. Nh4 {[%emt 0:02:57]} Qg5 {[%emt 0:00:07]} 21. Bxh5 {[%emt 0:00:28]} Qxh5 {[%emt 0:00:57]} 22. Qe2 {[%emt 0:00:33]} Qg5 {[%emt 0:03:28]} 23. Nf3 {[%emt 0:03:59]} Qg6 {[%emt 0:00:17]} 24. Kg2 {[%emt 0:01:18]} Bb6 {[%emt 0:02:25]} 25. a5 {[%emt 0:02:39]} Ba7 {[%emt 0:00:24]} 26. Qc2 {[%emt 0:00:18]} Qd6 {[%emt 0:08:11]} 27. Ne2 {[%emt 0:01:30]} Rac8 {[%emt 0:00:15]} 28. Nf4 {[%emt 0:01:12]} Bb8 {[%emt 0:05:25]} 29. Qd2 {[%emt 0:05:57]} g5 {[%emt 0:03:51]} 30. Nd3 {[%emt 0:00:59]} Nf6 {[%emt 0:01:50]} 31. Nc5 {[%emt 0:02:29]} Ne4 {[%emt 0:00:11]} 32. Nxe4 {[%emt 0:00:09]} dxe4 {[%emt 0:00:06]} 33. Nh2 {[%emt 0:00:36]} f5 {[%emt 0:01:01]} 34. Rg1 {[%emt 0:02:54]} Qd5 {[%emt 0:04:16]} 35. Qe2 {[%emt 0:01:30]} Kg7 {[%emt 0:08:37]} 36. Qh5 {[%emt 0:06:03]} Bd6 {[%emt 0:01:51]} 37. Kh1 {[%emt 0:02:25]} Re7 {[%emt 0:06:07]} 38. h4 {[%emt 0:06:11]} Qe6 {[%emt 0:07:15]} 39. hxg5 {[%emt 0:00:23]} Rh8 {[%emt 0:00:30]} 40. Rg2 {[%emt 0:00:56]} hxg5 {[%emt 0:01:02]} 41. Qxg5+ {[%emt 0:00:35]} Kf8 {[%emt 0:00:19]} 42. Kg1 {[%emt 0:04:01]} Reh7 {[%emt 0:00:16]} 43. Qd8+ {[%emt 0:00:32]} Kf7 {[%emt 0:00:33]} 44. Qb6 {[%emt 0:00:15]} Qa2 {[%emt 0:00:36]} 45. Rc1 {[%emt 0:01:05]} Qd2 {[%emt 0:00:44]} 46. Qxc6 {[%emt 0:00:13]} Rxh2 {[%emt 0:00:49]} 47. Qd7+ {[%emt 0:00:12]} Kg8 {[%emt 0:00:32]} 48. Rc8+ {[%emt 0:00:59]} Bf8 {[%emt 0:00:02]} 49. Qe6+ {[%emt 0:00:11]} 1-0

[Event "Croatian junior league 2021"]
[Site "Rabac"]
[Date "2021.04.09"]
[Round "8.9"]
[White "Cotic, Borna"]
[Black "Novosel, Marko"]
[Result "1-0"]
[ECO "B16"]
[WhiteElo "2120"]
[BlackElo "2130"]
[Annotator "NA"]
[PlyCount "87"]
[EventDate "2021.04.06"]
[EventType "swiss"]
[EventCountry "CRO"]
[SourceTitle "playchess.com"]
[Source "ChessBase"]
[SourceQuality "1"]
[TimeControl "5400+30"]

1. e4 {[%emt 0:02:13]} c6 {[%emt 0:00:00]} 2. Nc3 {[%emt 0:00:06]} d5 {[%emt 0:00:04]} 3. d4 {[%emt 0:00:04]} dxe4 {[%emt 0:00:39]} 4. Nxe4 {[%emt 0:00:44]} Nf6 {[%emt 0:06:07]} 5. Nxf6+ {[%emt 0:00:14]} gxf6 {[%emt 0:02:14]} 6. Nf3 {[%emt 0:00:09]} Bg4 {[%emt 0:01:17]} 7. Be2 {[%emt 0:00:22]} e6 {[%emt 0:00:10]} 8. O-O {[%emt 0:01:03]} Bd6 {[%emt 0:00:13]} 9. h3 {[%emt 0:00:42]} Bxf3 {[%emt 0:01:26]} 10. Bxf3 {[%emt 0:00:13]} Nd7 {[%emt 0:01:36]} 11. c4 {[%emt 0:00:22]} Qc7 {[%emt 0:00:29]} 12. d5 {[%emt 0:13:51]} Ne5 {[%emt 0:21:39]} 13. dxe6 {[%emt 0:02:29]} O-O-O {[%emt 0:00:19]} 14. exf7 {[%emt 0:09:13]} Qxf7 {[%emt 0:02:50]} 15. Qb3 {[%emt 0:08:56]} Rhg8 {[%emt 0:11:39]} 16. Bf4 {[%emt 0:03:19]} Qg7 {[%emt 0:26:32]} 17. Bxe5 {[%emt 0:01:59]} Bxe5 {[%emt 0:01:05]} 18. Rad1 {[%emt 0:03:20]} Qh6 {[%emt 0:06:50]} 19. c5 {[%emt 0:26:58]} Bc7 {[%emt 0:08:52]} 20. Rxd8+ {[%emt 0:11:40]} Rxd8 {[%emt 0:00:01]} 21. Rd1 {[%emt 0:00:14]} Rxd1+ {[%emt 0:01:33]} 22. Qxd1 {[%emt 0:00:15]} Qf4 {[%emt 0:00:30]} 23. g3 {[%emt 0:01:37]} Qe5 {[%emt 0:00:48]} 24. Qd3 {[%emt 0:02:29]} a5 {[%emt 0:00:25]} 25. Qxh7 {[%emt 0:02:18]} Qxc5 {[%emt 0:01:23]} 26. Qg8+ {[%emt 0:00:39]} Bd8 {[%emt 0:00:15]} 27. Kg2 {[%emt 0:00:25]} Qd4 {[%emt 0:00:26]} 28. h4 {[%emt 0:01:43]} Kb8 {[%emt 0:00:02]} 29. h5 {[%emt 0:00:57]} Ka7 {[%emt 0:00:03]} 30. Qe6 {[%emt 0:05:11]} Bb6 {[%emt 0:00:09]} 31. Qe2 {[%emt 0:00:10]} f5 {[%emt 0:00:27]} 32. b3 {[%emt 0:00:32]} Qf6 {[%emt 0:05:09]} 33. Qd2 {[%emt 0:00:12]} Qf8 {[%emt 0:00:47]} 34. h6 {[%emt 0:00:56]} Qf6 {[%emt 0:00:18]} 35. a3 {[%emt 0:00:47]} Qe5 {[%emt 0:00:39]} 36. b4 {[%emt 0:00:33]} axb4 {[%emt 0:00:18]} 37. axb4 {[%emt 0:00:01]} Bd4 {[%emt 0:00:18]} 38. h7 {[%emt 0:00:57]} Kb6 {[%emt 0:00:59]} 39. Qa2 {[%emt 0:00:12]} Qb5 {[%emt 0:00:28]} 40. Qb3 {[%emt 0:00:54]} Qe5 {[%emt 0:00:16]} 41. Qa2 {[%emt 0:00:20]} Qb5 {[%emt 0:00:22]} 42. Qg8 {[%emt 0:00:21]} Qe5 {[%emt 0:00:32]} 43. Qa8 {[%emt 0:00:05]} Bc3 {[%emt 0:00:35]} 44. h8=Q {[%emt 0:00:14]} 1-0

[Event "Croatian junior league 2021"]
[Site "Rabac"]
[Date "2021.04.09"]
[Round "8.10"]
[White "Klapac, Patrik"]
[Black "Simunic, Krunoslav"]
[Result "1-0"]
[ECO "C02"]
[WhiteElo "1780"]
[BlackElo "1999"]
[Annotator "NA"]
[PlyCount "63"]
[EventDate "2021.04.06"]
[EventType "swiss"]
[EventCountry "CRO"]
[SourceTitle "playchess.com"]
[Source "ChessBase"]
[SourceQuality "1"]
[TimeControl "5400+30"]

1. e4 {[%emt 0:02:15]} e6 {[%emt 0:04:52]} 2. d4 {[%emt 0:00:05]} d5 {[%emt 0:00:31]} 3. e5 {[%emt 0:00:07]} c5 {[%emt 0:01:29]} 4. c3 {[%emt 0:00:05]} Nc6 {[%emt 0:00:14]} 5. Be3 {[%emt 0:00:08]} Qb6 {[%emt 0:01:48]} 6. Qd2 {[%emt 0:00:16]} cxd4 {[%emt 0:02:14]} 7. cxd4 {[%emt 0:00:08]} Nge7 {[%emt 0:02:18]} 8. Nf3 {[%emt 0:01:15]} Nf5 {[%emt 0:04:26]} 9. Be2 {[%emt 0:03:17]} Bb4 {[%emt 0:05:45]} 10. Nc3 {[%emt 0:00:05]} O-O {[%emt 0:02:19]} 11. O-O {[%emt 0:00:05]} Na5 {[%emt 0:01:39]} 12. Rac1 {[%emt 0:01:24]} Bd7 {[%emt 0:03:38]} 13. Bd3 {[%emt 0:09:04]} Rac8 {[%emt 0:10:20]} 14. g4 {[%emt 0:03:11]} Nxe3 {[%emt 0:02:25]} 15. fxe3 {[%emt 0:02:06]} Nc4 {[%emt 0:04:19]} 16. Qe2 {[%emt 0:06:39]} Nxb2 {[%emt 0:04:32]} 17. Bxh7+ {[%emt 0:33:42]} Kxh7 {[%emt 0:00:34]} 18. Ng5+ {[%emt 0:00:08]} Kg8 {[%emt 0:05:38]} 19. Qc2 {[%emt 0:00:07]} g6 {[%emt 0:01:54]} 20. Rf6 {[%emt 0:01:57]} Kg7 {[%emt 0:01:44]} 21. Qg2 {[%emt 0:00:26]} Be8 {[%emt 0:02:46]} 22. Qh3 {[%emt 0:07:20]} Rh8 {[%emt 0:01:15]} 23. Qf3 {[%emt 0:00:06]} Rc7 {[%emt 0:13:28]} 24. Rf1 {[%emt 0:01:54]} Bxc3 {[%emt 0:16:52]} 25. Rxf7+ {[%emt 0:03:14]} Rxf7 {[%emt 0:03:23]} 26. Nxf7 {[%emt 0:00:08]} Bxf7 {[%emt 0:02:02]} 27. Qxf7+ {[%emt 0:00:06]} Kh6 {[%emt 0:00:09]} 28. g5+ Kh5 {[%emt 0:00:49]} 29. Rf3 {[%emt 0:00:16]} Be1 {[%emt 0:00:26]} 30. Rh3+ {[%emt 0:00:19]} Bh4 {[%emt 0:00:36]} 31. Qf3+ {[%emt 0:00:05]} Kxg5 {[%emt 0:00:18]} 32. Qf4+ {[%emt 0:00:04]} 1-0